Cogmind - Beta 13 X1 @@@ ROGUE MODE // 2023.11.19 @ 17:05:27 Player: f3-rnm Result: Destroyed by 1F-XGB(R) with Subdweller Beam Cannon Performance ------------- Evolutions (0) 0 Regions Visited (2) 400 Robots Destroyed (27) 135 Value Destroyed (695) 695 Prototype IDs (0) 0 Alien Tech Used (0) 0 Bonus (0) 0 TOTAL SCORE: 1230 Bonus ------- None Cogmind --------- Core Integrity 0/250 Matter 268/300 Energy 91/100 System Corruption 0% Temperature Cool (9) Movement Rolling (130) Ox2 Location -10/Subcaves Parts ------- > --- POWER (1) -------- (None) > --- PROPULSION (2) --- Subdweller Monowheel > --- UTILITY (2) ------ High-capacity Storage Unit > --- WEAPON (2) ------- Subdweller Machine Gun Battle Cannon > --- INVENTORY (20) --- Subdweller Power Source Subdweller Monowheel Subdweller Monowheel Improved Heat Sink Medium Matter Pod (100) High-capacity Matter Pod (200) Structural Scanner Transport Network Coupler Light Armor Plating Tractor Beam Assault Rifle Subdweller Machine Gun Subdweller Shrapnel Launcher Subdweller Shrapnel Launcher Shrapnel Trap Piercing Trap Scrap Shield Fragment (47) Peak State ------------ > --- POWER ------------ (None) > --- PROPULSION ------- Subdweller Monowheel > --- UTILITY ---------- High-capacity Storage Unit > --- WEAPON ----------- Subdweller Machine Gun Subdweller Machine Gun > --- INVENTORY -------- Subdweller Power Source Improved Heat Sink Medium Matter Pod High-capacity Matter Pod Structural Scanner Transport Network Coupler Light Armor Plating Tractor Beam Assault Rifle Subdweller Machine Gun Battle Cannon Subdweller Shrapnel Launcher Piercing Trap Scrap Shield Fragment [Rating: 9] Favorites ----------- Power Ion Engine Engine Ion Engine Propulsion Light Treads Treads Light Treads Wheel Compact Wheel Utility High-capacity Storage Unit Storage High-capacity Storage Unit Protection Weapon Shielding Weapon Assault Rifle Energy Cannon Subdweller Beam Cannon Ballistic Gun Assault Rifle Ballistic Cannon Battle Cannon Build | -11 -10 -10 ------- Run | Jun Mat Sub Slots Evolved . | . . . Power . | . . . Propulsion . | . . . Utility . | . . . Weapon . | . . . Parts Attached 21 | 6 2 13 Power 2 | 1 . 1 Engine 2 | 1 . 1 Core . | . . . Reactor . | . . . Propulsion 5 | 2 . 3 Treads 2 | 2 . . Leg . | . . . Wheel 3 | . . 3 Hover . | . . . Flight . | . . . Utility 3 | 1 2 . Device . | . . . Storage 2 | 1 1 . Processor . | . . . Hackware . | . . . Protection 1 | . 1 . Artifact . | . . . Weapon 11 | 2 . 9 Energy Gun . | . . . Energy Cannon 1 | . . 1 Ballistic Gun 9 | 2 . 7 Ballistic Cannon 1 | . . 1 Launcher . | . . . Special Weapon . | . . . Impact Weapon . | . . . Slashing Weapon . | . . . Piercing Weapon . | . . . Special Melee Weapon . | . . . Unidentified Prototypes . | . . . Parts Lost 12 | . . 12 Power 2 | . . 2 Propulsion 4 | . . 4 Utility 1 | . . 1 Weapon 5 | . . 5 Highest Loss Streak 6 | . . 6 To Critical Strikes . | . . . Average Slot Usage (%) 80 | . 91 60 Engine 9 | . 14 1 Treads 19 | . 28 2 Wheel 4 | . . 13 Storage 14 | . 14 14 Protection 4 | . 6 . Ballistic Gun 27 | . 28 26 Naked Turns . | . . . Heaviest Build 53 | 13 49 53 Greatest Support 40 | 40 40 40 Greatest Overweight (x) 4 | . 1 4 Average Overweight (x) . | . . 2 Largest Inventory Capacity 20 | 8 20 20 Average Capacity 14 | 6 11 20 Most Carried 18 | 4 12 18 Average Carried 8 | 1 7 12 Final Capacity 20 | 8 20 20 Final Carried 17 | 2 12 17 Class Distribution -------------------- 100% | Mutant Dominant Class ---------------- Mutant | -10/Materials Mutant | -10/Subcaves Resources | -11 -10 -10 ----------- Run | Jun Mat Sub Matter Collected 1023 | 229 321 473 Remotely . | . . . Salvage Created 839 | . 352 487 Parts 55 | . 26 29 Haulers Intercepted 1 | . 1 . Recyclers Shooed . | . . . Parts Field Recycled . | . . . Retrieved Matter . | . . . Parts Self-Destructed 16 | . . 16 Prevented . | . . . Kills | -11 -10 -10 ------- Run | Jun Mat Sub Combat Hostiles Destroyed 23 | . 10 13 Guns 23 | . 10 13 Classes Destroyed 7 | . 4 3 Hauler 1 | . 1 . Watcher 3 | . 3 . Swarmer 9 | . 6 3 Grunt 6 | . 4 2 Sentry 1 | . . 1 Artisan 1 | . . 1 Subdweller 7 | . . 7 Best Kill Streak 3 | . 3 3 Combat Bots Only 3 | . 3 3 Max Kills in Single Turn 1 | . 1 1 Gunslinging . | . . . Exploded . | . . . Melee . | . . . Uniques/NPCs Destroyed . | . . . Combat | -11 -10 -10 -------- Run | Jun Mat Sub Damage Taken 1658 | . 274 1384 Core 250 | . 15 235 Absorbed by Shields . | . . . Redirected to Shielding 56 | . 29 27 Core Remaining (%) 100 | 100 . . Volleys Fired 98 | . 41 57 Largest 2 | . 2 2 Hottest 100 | . 40 100 Shots Fired 192 | . 82 110 Gun 184 | . 82 102 Cannon 8 | . . 8 Launcher . | . . . Special . | . . . Kinetic 185 | . 82 103 Thermal 7 | . . 7 Explosive . | . . . Electromagnetic . | . . . Robot Hit Streak 18 | . 7 18 Robot Miss Streak 4 | . 4 2 Penetration Max . | . . . Secondary Targets 3 | . 1 2 Max Gunslinging Chain 1 | . 1 1 Shots Hit Robots 120 | . 40 80 Core Hits 46 | . 23 23 Critical Kills 1 | . . 1 Critical Parts Destroyed 1 | . 1 . Critical Strikes 4 | . 1 3 Destroy 4 | . 1 3 Melee Attacks . | . . . Impact . | . . . Slashing . | . . . Piercing . | . . . Sneak Attacks . | . . . Combat Hostiles . | . . . Follow-up Attacks . | . . . Damage Inflicted 1763 | . 480 1283 Guns 1575 | . 474 1101 Cannons 182 | . . 182 Explosions . | . . . Melee . | . . . Ramming 6 | . 6 . Kinetic 1591 | . 474 1117 Thermal 166 | . . 166 Explosive . | . . . Electromagnetic . | . . . Impact . | . . . Slashing . | . . . Piercing . | . . . Highest Corruption . | . . . Average Corruption . | . . . Corruption Purged . | . . . Corruption Blocked . | . . . Overload Shots . | . . . Overflow Damage . | . . . Projectiles . | . . . Explosions . | . . . Melee . | . . . Knockbacks 1 | . 1 . Impact 1 | . 1 . Kinetic . | . . . Secondary . | . . . Self-Inflicted Damage . | . . . Shots . | . . . Rammed 1 | . 1 . Targets Rammed 1 | . 1 . Kicked . | . . . Crushed . | . . . Highest Temperature 18 | . 18 . Average Temperature 9 | . 9 . Received Heat Transfer 312 | . 87 225 Siege Activations . | . . . Robots Corrupted . | . . . Combat Hostiles . | . . . Parts Fried . | . . . Impact Corruptions . | . . . Robots Melted . | . . . Combat Hostiles . | . . . Parts Melted 1 | . . 1 Heat Transferred 222 | . . 222 Parts Sabotaged . | . . . Parts Stolen . | . . . Parts Stripped . | . . . Power Chain Reactions . | . . . Missiles Intercepted . | . . . Alert | -11 -10 -10 ------- Run | Jun Mat Sub Peak Influence 166 | . 166 . Initial . | . . . Average 41 | . 43 . Maximum Alert Level . | . . . Low Security (%) 100 | 100 100 . Level 1 . | . . . Level 2 . | . . . Level 3 . | . . . Level 4 . | . . . Level 5 . | . . . High Security . | . . . Max Security . | . . . Squads Dispatched 2 | . 2 . Investigation 1 | . 1 . Extermination . | . . . Reinforcement 1 | . 1 . Assault . | . . . Garrison . | . . . Intercept . | . . . Searches Triggered . | . . . Construction Impeded . | . . . Haulers Reinforced . | . . . Active Scanning Responses . | . . . Cargo Convoy Interrupts . | . . . Stealth | -11 -10 -10 --------- Run | Jun Mat Sub Distress Signals . | . . . Communications Jammed . | . . . Distress Signals . | . . . Times Spotted 33 | . 17 16 Peak Tracking Total 5 | . 3 5 Tactical Retreats 2 | . 1 1 Traps | -11 -10 -10 ------- Run | Jun Mat Sub Traps Triggered 1 | . 1 . Indirectly . | . . . Trap Hack Attempts . | . . . Triggered . | . . . Disarmed . | . . . Reprogrammed . | . . . Reused . | . . . Traps Extracted . | . . . Installed . | . . . Triggered . | . . . Most Traps Carried 2 | . . 2 Machines | -11 -10 -10 ---------- Run | Jun Mat Sub Machines Disabled . | . . . Max in Single Turn . | . . . Machines Repaired . | . . . Machines Sabotaged . | . . . Overloaded Fab Kills . | . . . Hacking | -11 -10 -10 --------- Run | Jun Mat Sub Machines Accessed 2 | . 2 . Terminals 2 | . 2 . Fabricators . | . . . Repair Stations . | . . . Recycling Units . | . . . Scanalyzers . | . . . Garrison Access . | . . . Total Hacks 5 | . 5 . Successful 1 | . 1 . Failed 3 | . 3 . Catastrophic 1 | . 1 . Database Lockouts 1 | . 1 . Manual 5 | . 5 . Terminals 5 | . 5 . Fabricators . | . . . Repair Stations . | . . . Recycling Units . | . . . Scanalyzers . | . . . Garrison Access . | . . . Terminal Hacks 1 | . 1 . Robot Analysis 1 | . 1 . Fabricator Hacks . | . . . Repair Station Hacks . | . . . Recycling Unit Hacks . | . . . Scanalyzer . | . . . Garrison Access Hacks . | . . . Unauthorized Hacks . | . . . Terminals . | . . . Fabricators . | . . . Repair Stations . | . . . Recycling Units . | . . . Scanalyzers . | . . . Garrison Access . | . . . Data Cores Recovered . | . . . Used . | . . . Hacking Detections 2 | . 2 . Full Trace Events . | . . . Feedback Events . | . . . Feedback Blocked . | . . . Robot Schematics Acquired . | . . . Robots Built . | . . . Authchips . | . . . Time . | . . . Total Robot Build Rating . | . . . Part Schematics Acquired . | . . . Parts Built . | . . . Authchips . | . . . Time . | . . . Total Part Build Rating . | . . . Parts Repaired . | . . . Time . | . . . Parts Recycled . | . . . Recycled Matter . | . . . Retrieved Matter . | . . . Retrieved Components . | . . . Parts Scanalyzed . | . . . Part Schematics Acquired . | . . . Parts Damaged . | . . . Bothacking | -11 -10 -10 ------------ Run | Jun Mat Sub Used RIF Installer . | . . . Robots Hacked . | . . . Non-combat . | . . . Combat . | . . . Robot Hacks Applied . | . . . Relay Couplers Released . | . . . Fabnet Peak Effective % . | . . . Robots Rewired . | . . . Allies Hacked . | . . . Hacks Repelled . | . . . Allies | -11 -10 -10 -------- Run | Jun Mat Sub Total Allies . | . . . Largest Group . | . . . Highest-Rated Group . | . . . Highest-Rated Ally . | . . . Total Orders . | . . . Ally Attacks . | . . . Total Damage . | . . . Kills . | . . . Allies Corrupted . | . . . Allies Melted . | . . . Intel | -11 -10 -10 ------- Run | Jun Mat Sub Robot Analysis Total 1 | . 1 . Derelict Logs Recovered . | . . . Drone Launches . | . . . Drone Recoveries . | . . . Exploration | -11 -10 -10 ------------- Run | Jun Mat Sub Turns Passed 2585 | 82 1637 866 Spaces Moved 1394 | 56 839 499 Core 19 | 19 . . Treads 879 | 37 839 3 Legs . | . . . Wheels 496 | . . 496 Hover . | . . . Flight . | . . . Fastest Speed 50 | 50 160 130 Average Speed 159 | 122 178 131 Slowest Speed 240 | 160 240 240 Overloaded Moves . | . . . Propulsion Burnouts . | . . . Robots Hopped . | . . . Cave-ins Triggered . | . . . Exploration Rate (%) 47 | 3 98 42 Regions Visited 2 Branch Regions 1 Pre-discovered Areas . | . . . Known Exits Taken . | . . . Unknown Exits Taken 2 | 1 1 . Scrap Searched 4 | . . 4 Spaces Dug . | . . . Terrain Destroyed 1 | . . 1 Melee . | . . . Projectile 1 | . . 1 AOE . | . . . Terrain Rammed . | . . . Walls Destroyed . | . . . Machines Disabled . | . . . Actions | -11 -10 -10 --------- Run | Jun Mat Sub Total 1570 | 69 904 597 Wait 20 | . 8 12 Move 1392 | 55 838 499 Hop . | . . . Pick Up 35 | 8 12 15 Fast Attach . | . . . Attach 16 | 6 1 9 Detach . | . . . Swap 5 | . 1 4 Drop 3 | . 2 1 Fire 98 | . 41 57 Melee . | . . . Ram . | . . . Kick . | . . . Crush 1 | . 1 . Escape Stasis . | . . . Rewire . | . . . Trap . | . . . Miscellaneous . | . . . Route ------- -11/Junkyard -10/Materials (discovered 5 exits: [*Mat x3] / [*Min] / [*Sub]) -10/Subcaves (discovered 1 exit: [*Mat]) History --------- Turn | Location | Event 3 | -11/Junkyard | Discovered new exit (range 15) 83 | -11/Junkyard | Entered Materials 306 | -10/Materials | Discovered new exit (range 15) 312 | -10/Materials | Build established: Mutant 652 | -10/Materials | Discovered new exit (range 10) 886 | -10/Materials | Central database locked down 1114 | -10/Materials | Discovered new exit (range 16) 1162 | -10/Materials | Discovered new exit (range 15) 1198 | -10/Materials | Discovered new exit (range 7) 1720 | -10/Materials | Entered Subcaves 1722 | -10/Subcaves | Ambushed by Subdwellers from Twisted Machinery 1793 | -10/Subcaves | Lost 6 parts (1p2n1u2w) 1812 | -10/Subcaves | Ambushed by Subdwellers from Twisted Machinery 1848 | -10/Subcaves | Core integrity fell below 50% 1884 | -10/Subcaves | Lost 3 parts (1p1n1w) 2331 | -10/Subcaves | Discovered new exit (range 12) 2430 | -10/Subcaves | Core integrity fell below 20% 2586 | -10/Subcaves | Destroyed by 1F-XGB(R) with Subdweller Beam Cannon Last Messages --------------- 02381_ Aluminum Leg fries itself beyond repair. 02390_ Particle Gun fries itself beyond repair. 02390_ Aluminum Leg fries itself beyond repair. 02393_ Imp. Heat Sink fries itself beyond repair. 02394_ Acquired 8 matter. 02427_ QD-AAN(R): "MADSUB!" 02437_ Acquired 12 matter. 02445_ Sub. Machine Gun shoots sparks and powers down. 02457_ Com. Wheel destroyed. 02458_ QD-AAN(R) destroyed. 02504_ Searching scrap... 02504_ Found Shrapnel Trap. 02504_ Found 26 Matter. 02505_ Acquired 26 matter. 02506_ Acquired Shrapnel Trap. 02548_ Acquired 11 matter. 02553_ Acquired Sub. Shrapnel Launcher. 02557_ Acquired Sub. Monowheel. 02580_ 1F-XGB(R) suffers critical hit (Destroy). 02582_ Sub. Machine Gun destroyed. Map ----- +----------------------------------------------------+ | ?????????????????????????????????????????????????? | | ?????????????????????????????????????????????????? | | ?????????????????????????????????????????????????? | | ?????????????????????????????????????????????????? | | ?????????????????????????????????????????????????? | | ?????????????????????????????????????????????????? | | ?????????????????????????????????????????????????? | | ?????????????????????????????????????????????????? | | ?????????????????????????????????????????????????? | | ?????????????????????????????????????????????????? | | ??????????????????????? ???????????????????????? | | ?????????????????????? ???????????????????????? | | ????????????????????? % ???????????????????????? | | ?????????????????????? R ???????????????????????? | | ?????????????????????? ???????????????????????? | | ??????????????????????# ???????????????????????? | | ?????????????????????## ???????????????????????? | | ?????????????????????# #??????????????????????? | | ?????????????????????? #??????????????????????? | | ??????????????????????? ##?????????????????????? | | ???????????????????????? #?????????????????????? | | ????????????????????????; #?????????????????????? | | ????????????????????????# ##########????????????? | | ????????????????????????# ## ####?????????? | | ???????????????????????## ##????????? | | ???????????????????????# @ #????????? | | ???????????????????# # ; ! #????????? | | ??????????????????# ##"% & #????????? | | ????????????????#" #""%* #????????? | | ?????????????? " #" * ####????????? | | ?????????????? " "" ##" #???????????? | | ?????????????? ##"""# ##" "#???????????? | | ????????????????#"### ### #"#???????????? | | ????????????????????# ### ##?# ####??????????? | | ????????????????????##??####??# #??????????? | | ??????????????????????????????# #??????????? | | ?????????????????????????????## #####??????????? | | ????????????????????????????## ##??????????????? | | ???????????????????????????## #???????????????? | | ???????????????????????????# #???????????????? | | ???????????????????????????# #??##???????????? | | ???????????????????????????## ### ##??????????? | | ????????????????????????????## ## ##?????????? | | ?????????????????????????????## #?????????? | | ?????????????????????????????## ##?????????? | | ????????????????????????????## #??????????? | | ????????????????????????????# ## ###??????????? | | ????????????????????????????# ### #???????????? | | ????????????????????????????# ## ##???????????? | | ????????????????????????????# #???????????? | +----------------------------------------------------+ Best States ------------- Heat Dissipation 25 Energy Generation 10 Energy Capacity 250 Matter Stores 300 Matter Capacity 300 Sight Range 16 Terrain Scan Density 10 Weapon Shielding 33 Evasion (%) 50 Recoil Reduction 2 Item Schematics ----------------- None Robot Schematics ------------------ None Fabricated ------------ Nothing Alien Tech Used ----------------- None Achievements -------------- None Challenges ------------ None Game ------ Seed GunMachineCasing Manual? 0 Play Time 00:14:16 Cumulative 107.8 hours Start 2023.11.18 @ 22:14:13 End 2023.11.19 @ 17:05:27 Sessions 3 Manual Loads 0 Difficulty Rogue Special Mode None Game No. 121 Rogue 85 Adventurer 36 Explorer 0 Win Type - Total 7 Types 2/0/5/0/0/0/0/0/0 Lore% 52 Gallery% 73 Achievement% 61 Wizard Run 0 Options --------- ASCII 0 Keyboard 0 Movement Mouse Keybinds 0 Fullscreen 1 Font 18/SmallcapsGlow Map View 76x50 Tactical HUD 1 Map Filters NONE Filters NONE Steam 1 RUN: bd873be7-4de2-4e7d-a9d9-c469fa27a00c